[Event "Titled Tuesday Blitz June 28 Early 2022"]
[White "Przybylski, Wojciech"]
[Black "Gardezi, Arsal"]
[WhiteFideId "1117599"]
[BlackFideId "30949521"]
[WhiteElo "2133"]
[BlackElo "1781"]
[Result "1-0"]
[Round "03"]
[TimeControl "180+1"]
[Date "2022.06.28"]
[WhiteClock "0:00:08"]
[BlackClock "0:00:16"]

1. e4 {[%clk 0:03:00]}  e5 {[%clk 0:02:57]} 2. Nf3 {[%clk 0:02:59]}  Nc6 {[%clk 0:02:57]} 3. d4 {[%clk 0:02:59]}  exd4 {[%clk 0:02:55]} 4. Nxd4 {[%clk 0:03:00]}  Bc5 {[%clk 0:02:55]} 5. Nxc6 {[%clk 0:03:00]}  Qf6 {[%clk 0:02:55]} 6. Qf3 {[%clk 0:02:59]}  dxc6 {[%clk 0:02:53]} 7. Nc3 {[%clk 0:02:58]}  Be6 {[%clk 0:02:33]} 8. Bd3 {[%clk 0:02:56]}  O-O-O {[%clk 0:02:23]} 9. Bd2 {[%clk 0:02:50]}  Ne7 {[%clk 0:01:49]} 10. Qxf6 {[%clk 0:02:37]}  gxf6 {[%clk 0:01:50]} 11. f4 {[%clk 0:02:31]}  f5 {[%clk 0:01:49]} 12. e5 {[%clk 0:02:31]}  Rhg8 {[%clk 0:01:47]} 13. g3 {[%clk 0:02:29]}  Nd5 {[%clk 0:01:46]} 14. a3 {[%clk 0:02:16]}  Nb6 {[%clk 0:01:17]} 15. Ke2 {[%clk 0:02:09]}  Nc4 {[%clk 0:01:14]} 16. Bc1 {[%clk 0:01:59]}  Bd4 {[%clk 0:00:49]} 17. Nd1 {[%clk 0:01:24]}  h5 {[%clk 0:00:41]} 18. c3 {[%clk 0:01:01]}  Bb6 {[%clk 0:00:33]} 19. b3 {[%clk 0:01:00]}  Na5 {[%clk 0:00:34]} 20. b4 {[%clk 0:00:50]}  Nc4 {[%clk 0:00:28]} 21. Ne3 {[%clk 0:00:40]}  Nxe3 {[%clk 0:00:20]} 22. Bxe3 {[%clk 0:00:41]}  h4 {[%clk 0:00:19]} 23. Rhg1 {[%clk 0:00:37]}  hxg3 {[%clk 0:00:18]} 24. hxg3 {[%clk 0:00:36]}  Rh8 {[%clk 0:00:18]} 25. Bxb6 {[%clk 0:00:35]}  Rh2+ {[%clk 0:00:16]} 26. Ke3 {[%clk 0:00:33]}  axb6 {[%clk 0:00:15]} 27. Be2 {[%clk 0:00:30]}  Bd5 {[%clk 0:00:13]} 28. Rad1 {[%clk 0:00:28]}  Rdh8 {[%clk 0:00:12]} 29. Bd3 {[%clk 0:00:23]}  R2h3 {[%clk 0:00:11]} 30. Bxf5+ {[%clk 0:00:23]}  Be6 {[%clk 0:00:11]} 31. Bxh3 {[%clk 0:00:22]}  Rxh3 {[%clk 0:00:11]} 32. Ke4 {[%clk 0:00:22]}  Bd5+ {[%clk 0:00:11]} 33. Kf5 {[%clk 0:00:20]}  Rh5+ {[%clk 0:00:11]} 34. Kg4 {[%clk 0:00:20]}  Rh2 {[%clk 0:00:12]} 35. f5 {[%clk 0:00:20]}  Rf2 {[%clk 0:00:12]} 36. Rdf1 {[%clk 0:00:18]}  Rc2 {[%clk 0:00:12]} 37. e6 {[%clk 0:00:15]}  fxe6 {[%clk 0:00:12]} 38. f6 {[%clk 0:00:15]}  e5 {[%clk 0:00:11]} 39. f7 {[%clk 0:00:16]}  Be6+ {[%clk 0:00:12]} 40. Kg5 {[%clk 0:00:16]}  Bxf7 {[%clk 0:00:12]} 41. Rxf7 {[%clk 0:00:15]}  Rxc3 {[%clk 0:00:13]} 42. Rh1 {[%clk 0:00:14]}  Kb8 {[%clk 0:00:14]} 43. Rh8+ {[%clk 0:00:12]}  Ka7 {[%clk 0:00:14]} 44. g4 {[%clk 0:00:12]}  Rxa3 {[%clk 0:00:14]} 45. Rxc7 {[%clk 0:00:11]}  e4 {[%clk 0:00:14]} 46. Re8 {[%clk 0:00:10]}  e3 {[%clk 0:00:14]} 47. Ree7 {[%clk 0:00:11]}  Ka6 {[%clk 0:00:14]} 48. Rxb7 {[%clk 0:00:10]}  e2 {[%clk 0:00:14]} 49. Ra7+ {[%clk 0:00:09]}  Kb5 {[%clk 0:00:14]} 50. Rxa3 {[%clk 0:00:09]}  e1=Q {[%clk 0:00:15]} 51. Rxe1 {[%clk 0:00:08]}  Kxb4 {[%clk 0:00:16]} 1-0


[Site "https://www.chess.com"]

[Event "Titled Tuesday Blitz June 28 Early 2022"]
[White "Pulpan, Jakub"]
[Black "Garcia Cuenca, Victor"]
[WhiteFideId "302759"]
[BlackFideId "2250829"]
[WhiteElo "2495"]
[BlackElo "2317"]
[Result "1-0"]
[Round "03"]
[TimeControl "180+1"]
[Date "2022.06.28"]
[WhiteClock "0:00:55"]
[BlackClock "0:00:13"]

1. e4 {[%clk 0:02:59]}  c5 {[%clk 0:02:59]} 2. Nf3 {[%clk 0:02:55]}  d6 {[%clk 0:02:58]} 3. d4 {[%clk 0:02:55]}  cxd4 {[%clk 0:02:59]} 4. Nxd4 {[%clk 0:02:56]}  Nf6 {[%clk 0:02:59]} 5. Nc3 {[%clk 0:02:56]}  Nc6 {[%clk 0:02:59]} 6. Bg5 {[%clk 0:02:50]}  e5 {[%clk 0:02:54]} 7. Nf5 {[%clk 0:02:40]}  Bxf5 {[%clk 0:02:49]} 8. exf5 {[%clk 0:02:41]}  Be7 {[%clk 0:02:47]} 9. Bc4 {[%clk 0:02:42]}  O-O {[%clk 0:02:46]} 10. O-O {[%clk 0:02:42]}  d5 {[%clk 0:02:34]} 11. Bxf6 {[%clk 0:02:40]}  dxc4 {[%clk 0:02:34]} 12. Bxe7 {[%clk 0:02:40]}  Qxe7 {[%clk 0:02:33]} 13. Qg4 {[%clk 0:02:38]}  Qc5 {[%clk 0:02:31]} 14. f6 {[%clk 0:02:36]}  g6 {[%clk 0:02:29]} 15. Ne4 {[%clk 0:02:33]}  Qb6 {[%clk 0:02:07]} 16. Qg5 {[%clk 0:02:24]}  Nd4 {[%clk 0:02:01]} 17. Qh6 {[%clk 0:02:19]}  Nf5 {[%clk 0:01:53]} 18. Qh3 {[%clk 0:02:18]}  Qd4 {[%clk 0:01:45]} 19. Rae1 {[%clk 0:02:18]}  h5 {[%clk 0:01:40]} 20. g4 {[%clk 0:02:08]}  hxg4 {[%clk 0:01:32]} 21. Qxg4 {[%clk 0:02:08]}  Rad8 {[%clk 0:01:21]} 22. Kh1 {[%clk 0:01:58]}  Nd6 {[%clk 0:01:08]} 23. Qh4 {[%clk 0:01:46]}  Nxe4 {[%clk 0:01:02]} 24. Rxe4 {[%clk 0:01:47]}  Qd2 {[%clk 0:01:03]} 25. Rg1 {[%clk 0:01:42]}  Rd4 {[%clk 0:00:57]} 26. f4 {[%clk 0:01:29]}  Qxc2 {[%clk 0:00:41]} 27. Rxe5 {[%clk 0:01:20]}  Rd1 {[%clk 0:00:28]} 28. Qh6 {[%clk 0:01:10]}  Rxg1+ {[%clk 0:00:28]} 29. Kxg1 {[%clk 0:01:11]}  Qd1+ {[%clk 0:00:28]} 30. Kf2 {[%clk 0:01:12]}  Qd2+ {[%clk 0:00:28]} 31. Kf3 {[%clk 0:01:08]}  Qd1+ {[%clk 0:00:27]} 32. Re2 {[%clk 0:01:02]}  Qf1+ {[%clk 0:00:24]} 33. Kg3 {[%clk 0:01:01]}  Qg1+ {[%clk 0:00:22]} 34. Kh3 {[%clk 0:00:58]}  Qf1+ {[%clk 0:00:18]} 35. Kh4 {[%clk 0:00:56]}  g5+ {[%clk 0:00:13]} 36. Qxg5+ {[%clk 0:00:54]}  Kh8 {[%clk 0:00:13]} 37. Qg7# {[%clk 0:00:55]} 1-0


[Site "https://www.chess.com"]

[Event "Titled Tuesday Blitz June 28 Early 2022"]
[White "Riehle, Marco"]
[Black "Bettalli, Francesco"]
[WhiteFideId "12904392"]
[BlackFideId "2816453"]
[WhiteElo "2462"]
[BlackElo "2216"]
[Result "1-0"]
[Round "03"]
[TimeControl "180+1"]
[Date "2022.06.28"]
[WhiteClock "0:01:02"]
[BlackClock "0:00:32"]

1. e4 {[%clk 0:02:59]}  e5 {[%clk 0:02:59]} 2. Nf3 {[%clk 0:02:59]}  Nf6 {[%clk 0:03:00]} 3. Nxe5 {[%clk 0:02:59]}  Nxe4 {[%clk 0:03:00]} 4. Qe2 {[%clk 0:02:58]}  Qe7 {[%clk 0:03:00]} 5. Qxe4 {[%clk 0:02:58]}  d6 {[%clk 0:03:00]} 6. d4 {[%clk 0:02:58]}  dxe5 {[%clk 0:03:00]} 7. Qxe5 {[%clk 0:02:57]}  Qxe5+ {[%clk 0:02:59]} 8. dxe5 {[%clk 0:02:58]}  Nc6 {[%clk 0:02:59]} 9. Bb5 {[%clk 0:02:56]}  Bd7 {[%clk 0:02:59]} 10. Bf4 {[%clk 0:02:55]}  O-O-O {[%clk 0:02:57]} 11. Nc3 {[%clk 0:02:54]}  Bb4 {[%clk 0:02:43]} 12. O-O-O {[%clk 0:02:54]}  Rhe8 {[%clk 0:02:41]} 13. Nd5 {[%clk 0:02:51]}  Bc5 {[%clk 0:02:39]} 14. Nxc7 {[%clk 0:02:44]}  Kxc7 {[%clk 0:02:40]} 15. e6+ {[%clk 0:02:44]}  Kb6 {[%clk 0:02:41]} 16. exd7 {[%clk 0:02:44]}  Re4 {[%clk 0:02:40]} 17. Bxc6 {[%clk 0:02:31]}  Rxf4 {[%clk 0:02:33]} 18. Bf3 {[%clk 0:02:30]}  Bxf2 {[%clk 0:02:33]} 19. Rhf1 {[%clk 0:02:27]}  Be3+ {[%clk 0:02:29]} 20. Kb1 {[%clk 0:02:27]}  Kc7 {[%clk 0:02:28]} 21. Rfe1 {[%clk 0:02:26]}  Bb6 {[%clk 0:02:27]} 22. c3 {[%clk 0:02:21]}  Rxd7 {[%clk 0:02:14]} 23. Rxd7+ {[%clk 0:02:20]}  Kxd7 {[%clk 0:02:15]} 24. Bxb7 {[%clk 0:02:20]}  Rf2 {[%clk 0:02:12]} 25. Bf3 {[%clk 0:02:21]}  f5 {[%clk 0:02:11]} 26. h3 {[%clk 0:02:18]}  Bc7 {[%clk 0:02:03]} 27. a4 {[%clk 0:02:16]}  g5 {[%clk 0:02:02]} 28. Ka2 {[%clk 0:02:14]}  Bf4 {[%clk 0:01:57]} 29. Ka3 {[%clk 0:02:10]}  Kd6 {[%clk 0:01:51]} 30. b4 {[%clk 0:02:06]}  g4 {[%clk 0:01:48]} 31. hxg4 {[%clk 0:02:05]}  fxg4 {[%clk 0:01:49]} 32. Ba8 {[%clk 0:02:00]}  h5 {[%clk 0:01:47]} 33. c4 {[%clk 0:01:55]}  h4 {[%clk 0:01:46]} 34. c5+ {[%clk 0:01:56]}  Kd7 {[%clk 0:01:44]} 35. b5 {[%clk 0:01:52]}  Rd2 {[%clk 0:01:36]} 36. a5 {[%clk 0:01:40]}  Rd3+ {[%clk 0:01:36]} 37. Ka2 {[%clk 0:01:35]}  Rd2+ {[%clk 0:01:35]} 38. Kb3 {[%clk 0:01:35]}  h3 {[%clk 0:01:33]} 39. gxh3 {[%clk 0:01:35]}  gxh3 {[%clk 0:01:34]} 40. b6 {[%clk 0:01:32]}  axb6 {[%clk 0:01:31]} 41. cxb6 {[%clk 0:01:29]}  h2 {[%clk 0:01:04]} 42. Rf1 {[%clk 0:01:28]}  Be5 {[%clk 0:01:01]} 43. Kc4 {[%clk 0:01:24]}  Ra2 {[%clk 0:00:51]} 44. Kb5 {[%clk 0:01:16]}  Rb2+ {[%clk 0:00:51]} 45. Ka6 {[%clk 0:01:15]}  Bc3 {[%clk 0:00:51]} 46. Rd1+ {[%clk 0:01:12]}  Rd2 {[%clk 0:00:45]} 47. Rxd2+ {[%clk 0:01:06]}  Bxd2 {[%clk 0:00:46]} 48. Kb5 {[%clk 0:01:06]}  Kc8 {[%clk 0:00:39]} 49. a6 {[%clk 0:01:06]}  Be3 {[%clk 0:00:32]} 50. Bh1 {[%clk 0:01:02]} 1-0


[Site "https://www.chess.com"]

[Event "Titled Tuesday Blitz June 28 Early 2022"]
[White "Rios Escobar, Adan"]
[Black "Jaracz, Pawel"]
[WhiteFideId "3403645"]
[BlackFideId "1102222"]
[WhiteElo "2467"]
[BlackElo "2459"]
[Result "0-1"]
[Round "03"]
[TimeControl "180+1"]
[Date "2022.06.28"]
[WhiteClock "0:00:01"]
[BlackClock "0:00:27"]

1. d4 {[%clk 0:03:00]}  Nf6 {[%clk 0:02:59]} 2. g3 {[%clk 0:03:01]}  g6 {[%clk 0:02:58]} 3. Bg2 {[%clk 0:03:01]}  c5 {[%clk 0:02:58]} 4. d5 {[%clk 0:03:00]}  d6 {[%clk 0:02:57]} 5. c4 {[%clk 0:03:01]}  Bg7 {[%clk 0:02:55]} 6. Nc3 {[%clk 0:03:01]}  O-O {[%clk 0:02:55]} 7. Nf3 {[%clk 0:03:02]}  e6 {[%clk 0:02:55]} 8. O-O {[%clk 0:03:02]}  exd5 {[%clk 0:02:56]} 9. cxd5 {[%clk 0:03:03]}  Nbd7 {[%clk 0:02:55]} 10. Re1 {[%clk 0:02:55]}  a6 {[%clk 0:02:51]} 11. a4 {[%clk 0:02:55]}  Re8 {[%clk 0:02:51]} 12. Bf4 {[%clk 0:02:50]}  Qe7 {[%clk 0:02:49]} 13. h3 {[%clk 0:02:47]}  Rb8 {[%clk 0:02:45]} 14. e4 {[%clk 0:02:33]}  Nh5 {[%clk 0:02:39]} 15. Bg5 {[%clk 0:02:32]}  Bf6 {[%clk 0:02:38]} 16. Bxf6 {[%clk 0:02:27]}  Nhxf6 {[%clk 0:02:32]} 17. a5 {[%clk 0:02:04]}  b5 {[%clk 0:02:29]} 18. axb6 {[%clk 0:02:05]}  Rxb6 {[%clk 0:02:29]} 19. Qd2 {[%clk 0:02:00]}  Rb4 {[%clk 0:02:12]} 20. Qh6 {[%clk 0:00:55]}  Qf8 {[%clk 0:02:03]} 21. Qxf8+ {[%clk 0:00:35]}  Kxf8 {[%clk 0:02:02]} 22. Nd2 {[%clk 0:00:34]}  Ne5 {[%clk 0:02:02]} 23. Reb1 {[%clk 0:00:23]}  g5 {[%clk 0:01:23]} 24. f4 {[%clk 0:00:22]}  gxf4 {[%clk 0:01:24]} 25. gxf4 {[%clk 0:00:23]}  Nd3 {[%clk 0:01:23]} 26. e5 {[%clk 0:00:20]}  dxe5 {[%clk 0:01:21]} 27. fxe5 {[%clk 0:00:21]}  Rxe5 {[%clk 0:01:20]} 28. Rf1 {[%clk 0:00:16]}  Kg7 {[%clk 0:01:19]} 29. Nf3 {[%clk 0:00:13]}  Re3 {[%clk 0:01:15]} 30. Nd1 {[%clk 0:00:13]}  Re2 {[%clk 0:01:14]} 31. Ra5 {[%clk 0:00:08]}  Nxd5 {[%clk 0:01:09]} 32. Ne1 {[%clk 0:00:03]}  N3f4 {[%clk 0:00:46]} 33. Rf3 {[%clk 0:00:01]}  Rxe1+ {[%clk 0:00:44]} 34. Bf1 {[%clk 0:00:02]}  Rxd1 {[%clk 0:00:44]} 35. Rg3+ {[%clk 0:00:01]}  Kf6 {[%clk 0:00:43]} 36. Rf3 {[%clk 0:00:01]}  Bf5 {[%clk 0:00:44]} 37. Rxc5 {[%clk 0:00:01]}  Ke5 {[%clk 0:00:35]} 38. Kf2 {[%clk 0:00:01]}  Rxb2+ {[%clk 0:00:34]} 39. Kg3 {[%clk 0:00:02]}  Rd4 {[%clk 0:00:31]} 40. Bg2 {[%clk 0:00:01]}  Rxg2+ {[%clk 0:00:29]} 41. Kh4 {[%clk 0:00:01]}  Ng6+ {[%clk 0:00:27]} 42. Kh5 {[%clk 0:00:01]}  Rh4# {[%clk 0:00:27]} 0-1


[Site "https://www.chess.com"]

[Event "Titled Tuesday Blitz June 28 Early 2022"]
[White "Rosenberg, Evan S"]
[Black "Huber, Benedikt"]
[WhiteFideId "2019299"]
[BlackFideId "12923583"]
[WhiteElo "2142"]
[BlackElo "1979"]
[Result "1-0"]
[Round "03"]
[TimeControl "180+1"]
[Date "2022.06.28"]
[WhiteClock "0:00:05"]
[BlackClock "0:00:22"]

1. e4 {[%clk 0:03:00]}  c5 {[%clk 0:02:46]} 2. Nc3 {[%clk 0:02:59]}  e6 {[%clk 0:02:44]} 3. Nge2 {[%clk 0:02:58]}  Nc6 {[%clk 0:02:43]} 4. g3 {[%clk 0:02:47]}  d5 {[%clk 0:02:10]} 5. exd5 {[%clk 0:02:41]}  exd5 {[%clk 0:02:11]} 6. d4 {[%clk 0:02:41]}  Bg4 {[%clk 0:02:10]} 7. Bg2 {[%clk 0:02:40]}  cxd4 {[%clk 0:02:06]} 8. Nxd5 {[%clk 0:02:27]}  Nge7 {[%clk 0:02:00]} 9. Bg5 {[%clk 0:02:13]}  f6 {[%clk 0:01:22]} 10. Bxf6 {[%clk 0:02:09]}  Qa5+ {[%clk 0:01:17]} 11. b4 {[%clk 0:02:03]}  Nxb4 {[%clk 0:01:14]} 12. Nxb4 {[%clk 0:01:41]}  Qxb4+ {[%clk 0:01:15]} 13. c3 {[%clk 0:01:41]}  dxc3 {[%clk 0:01:08]} 14. Bxc3 {[%clk 0:01:28]}  Qc4 {[%clk 0:01:08]} 15. f3 {[%clk 0:01:22]}  Bf5 {[%clk 0:01:08]} 16. O-O {[%clk 0:01:12]}  Bd3 {[%clk 0:01:05]} 17. Re1 {[%clk 0:01:08]}  Bxe2 {[%clk 0:01:02]} 18. Qxe2 {[%clk 0:00:39]}  Qxc3 {[%clk 0:01:02]} 19. Rac1 {[%clk 0:00:36]}  Qd4+ {[%clk 0:00:56]} 20. Kh1 {[%clk 0:00:36]}  Qf6 {[%clk 0:00:41]} 21. f4 {[%clk 0:00:31]}  Kf7 {[%clk 0:00:40]} 22. Rc7 {[%clk 0:00:26]}  Rd8 {[%clk 0:00:36]} 23. Qc4+ {[%clk 0:00:22]}  Kg6 {[%clk 0:00:34]} 24. Qc2+ {[%clk 0:00:06]}  Nf5 {[%clk 0:00:32]} 25. Be4 {[%clk 0:00:04]}  Bd6 {[%clk 0:00:30]} 26. Rxb7 {[%clk 0:00:04]}  Rc8 {[%clk 0:00:24]} 27. Qb1 {[%clk 0:00:04]}  Rhg8 {[%clk 0:00:23]} 28. g4 {[%clk 0:00:04]}  h5 {[%clk 0:00:20]} 29. Bxf5+ {[%clk 0:00:04]}  Kh6 {[%clk 0:00:19]} 30. g5+ {[%clk 0:00:05]}  Qxg5 {[%clk 0:00:20]} 31. fxg5+ {[%clk 0:00:05]}  Kxg5 {[%clk 0:00:21]} 32. Bh3 {[%clk 0:00:05]}  Kf6 {[%clk 0:00:22]} 33. Qf5# {[%clk 0:00:05]} 1-0


[Site "https://www.chess.com"]

[Event "Titled Tuesday Blitz June 28 Early 2022"]
[White "Rustemov, Alexander"]
[Black "Vachier-Lagrave, Maxime"]
[WhiteFideId "4119002"]
[BlackFideId "623539"]
[WhiteElo "2742"]
[BlackElo "2813"]
[Result "0-1"]
[Round "03"]
[TimeControl "180+1"]
[Date "2022.06.28"]
[WhiteClock "0:00:52"]
[BlackClock "0:02:27"]

1. d4 {[%clk 0:03:00]}  d5 {[%clk 0:02:59]} 2. c4 {[%clk 0:03:01]}  dxc4 {[%clk 0:02:59]} 3. Nf3 {[%clk 0:03:00]}  Nf6 {[%clk 0:02:58]} 4. e3 {[%clk 0:03:01]}  e6 {[%clk 0:02:58]} 5. Bxc4 {[%clk 0:03:01]}  a6 {[%clk 0:02:57]} 6. O-O {[%clk 0:03:01]}  c5 {[%clk 0:02:58]} 7. e4 {[%clk 0:03:02]}  b5 {[%clk 0:02:56]} 8. Bd3 {[%clk 0:03:02]}  Nbd7 {[%clk 0:02:55]} 9. a4 {[%clk 0:02:58]}  c4 {[%clk 0:02:52]} 10. Bc2 {[%clk 0:02:58]}  Bb7 {[%clk 0:02:53]} 11. Bg5 {[%clk 0:02:36]}  Be7 {[%clk 0:02:52]} 12. axb5 {[%clk 0:02:35]}  axb5 {[%clk 0:02:51]} 13. Rxa8 {[%clk 0:02:34]}  Bxa8 {[%clk 0:02:47]} 14. Qe2 {[%clk 0:02:15]}  h6 {[%clk 0:02:45]} 15. Bxf6 {[%clk 0:02:11]}  Nxf6 {[%clk 0:02:45]} 16. Nc3 {[%clk 0:02:09]}  b4 {[%clk 0:02:45]} 17. Na4 {[%clk 0:01:45]}  O-O {[%clk 0:02:42]} 18. e5 {[%clk 0:01:41]}  Nd5 {[%clk 0:02:41]} 19. Qxc4 {[%clk 0:01:40]}  Nf4 {[%clk 0:02:31]} 20. Nc5 {[%clk 0:01:06]}  Bxf3 {[%clk 0:02:27]} 21. gxf3 {[%clk 0:00:52]}  Bxc5 {[%clk 0:02:27]} 0-1


[Site "https://www.chess.com"]

[Event "Titled Tuesday Blitz June 28 Early 2022"]
[White "Sadhwani, Raunak"]
[Black "Lianes Garcia, Marcos"]
[WhiteFideId "35093487"]
[BlackFideId "32060777"]
[WhiteElo "2616"]
[BlackElo "2310"]
[Result "1-0"]
[Round "03"]
[TimeControl "180+1"]
[Date "2022.06.28"]
[WhiteClock "0:00:06"]
[BlackClock "0:00:05"]

1. Nf3 {[%clk 0:03:00]}  g6 {[%clk 0:02:58]} 2. e4 {[%clk 0:03:00]}  Bg7 {[%clk 0:02:58]} 3. d4 {[%clk 0:03:01]}  c5 {[%clk 0:02:59]} 4. d5 {[%clk 0:02:57]}  d6 {[%clk 0:02:58]} 5. h3 {[%clk 0:02:55]}  Nf6 {[%clk 0:02:58]} 6. Nc3 {[%clk 0:02:55]}  O-O {[%clk 0:02:57]} 7. Be2 {[%clk 0:02:53]}  e6 {[%clk 0:02:57]} 8. O-O {[%clk 0:02:49]}  exd5 {[%clk 0:02:57]} 9. exd5 {[%clk 0:02:50]}  Re8 {[%clk 0:02:55]} 10. Be3 {[%clk 0:02:49]}  Na6 {[%clk 0:02:50]} 11. Qd2 {[%clk 0:02:47]}  Nc7 {[%clk 0:02:44]} 12. a4 {[%clk 0:02:46]}  Bf5 {[%clk 0:02:43]} 13. Bc4 {[%clk 0:02:22]}  Rb8 {[%clk 0:02:28]} 14. Rab1 {[%clk 0:02:10]}  a6 {[%clk 0:02:20]} 15. a5 {[%clk 0:02:11]}  Ne4 {[%clk 0:01:26]} 16. Nxe4 {[%clk 0:02:10]}  Bxe4 {[%clk 0:01:27]} 17. Ng5 {[%clk 0:02:03]}  Bf5 {[%clk 0:01:24]} 18. b4 {[%clk 0:02:03]}  h6 {[%clk 0:01:03]} 19. Nf3 {[%clk 0:02:02]}  Re4 {[%clk 0:01:03]} 20. Bd3 {[%clk 0:02:01]}  Rxb4 {[%clk 0:01:03]} 21. Bxf5 {[%clk 0:01:56]}  Rxb1 {[%clk 0:01:00]} 22. Rxb1 {[%clk 0:01:57]}  gxf5 {[%clk 0:01:01]} 23. Bxh6 {[%clk 0:01:45]}  Qf6 {[%clk 0:00:44]} 24. Bxg7 {[%clk 0:01:36]}  Kxg7 {[%clk 0:00:45]} 25. c4 {[%clk 0:01:37]}  f4 {[%clk 0:00:42]} 26. Kh2 {[%clk 0:01:25]}  Qf5 {[%clk 0:00:28]} 27. Rb6 {[%clk 0:01:25]}  Qf6 {[%clk 0:00:23]} 28. Qc2 {[%clk 0:01:13]}  Na8 {[%clk 0:00:22]} 29. Rb3 {[%clk 0:01:11]}  b5 {[%clk 0:00:21]} 30. axb6 {[%clk 0:01:11]}  Rxb6 {[%clk 0:00:21]} 31. Ra3 {[%clk 0:01:02]}  Rb4 {[%clk 0:00:20]} 32. Nd2 {[%clk 0:00:52]}  Nb6 {[%clk 0:00:14]} 33. Rxa6 {[%clk 0:00:40]}  f3 {[%clk 0:00:13]} 34. Nxf3 {[%clk 0:00:26]}  Nxc4 {[%clk 0:00:12]} 35. Qc1 {[%clk 0:00:18]}  Ne5 {[%clk 0:00:10]} 36. Ra3 {[%clk 0:00:19]}  Nxf3+ {[%clk 0:00:06]} 37. Rxf3 {[%clk 0:00:19]}  Qe5+ {[%clk 0:00:06]} 38. Rg3+ {[%clk 0:00:20]}  Kf8 {[%clk 0:00:07]} 39. Qh6+ {[%clk 0:00:18]}  Ke7 {[%clk 0:00:07]} 40. Qd2 {[%clk 0:00:12]}  Rd4 {[%clk 0:00:07]} 41. Qa2 {[%clk 0:00:12]}  Rxd5 {[%clk 0:00:05]} 42. f4 {[%clk 0:00:13]}  Qd4 {[%clk 0:00:04]} 43. Qa7+ {[%clk 0:00:12]}  Kf6 {[%clk 0:00:05]} 44. Qa8 {[%clk 0:00:11]}  Qe4 {[%clk 0:00:04]} 45. Qd8+ {[%clk 0:00:10]}  Kf5 {[%clk 0:00:03]} 46. Rg5+ {[%clk 0:00:06]}  Kxf4 {[%clk 0:00:03]} 47. Qf6+ {[%clk 0:00:05]}  Ke3 {[%clk 0:00:02]} 48. Rg3+ {[%clk 0:00:05]}  Ke2 {[%clk 0:00:03]} 49. Qb2+ {[%clk 0:00:04]}  Rd2 {[%clk 0:00:03]} 50. Qc3 {[%clk 0:00:04]}  d5 {[%clk 0:00:03]} 51. Qf6 {[%clk 0:00:04]}  d4 {[%clk 0:00:03]} 52. Rf3 {[%clk 0:00:04]}  Kd1 {[%clk 0:00:03]} 53. Rf1+ {[%clk 0:00:05]}  Kc2 {[%clk 0:00:04]} 54. Rg1 {[%clk 0:00:05]}  Qe2 {[%clk 0:00:04]} 55. Qf5+ {[%clk 0:00:05]}  d3 {[%clk 0:00:04]} 56. Qxf7 {[%clk 0:00:06]}  Qe4 {[%clk 0:00:04]} 57. Qa2+ {[%clk 0:00:05]}  Kc3 {[%clk 0:00:05]} 58. Qa5+ {[%clk 0:00:05]}  Kc2 {[%clk 0:00:05]} 59. Qxc5+ {[%clk 0:00:06]}  Kb2 {[%clk 0:00:05]} 60. Qc1+ {[%clk 0:00:06]} 1-0


[Site "https://www.chess.com"]

[Event "Titled Tuesday Blitz June 28 Early 2022"]
[White "Saito, Vinicius"]
[Black "Weishaeutel, Moritz"]
[WhiteFideId "2113384"]
[BlackFideId "12967300"]
[WhiteElo "2168"]
[BlackElo "2002"]
[Result "0-1"]
[Round "03"]
[TimeControl "180+1"]
[Date "2022.06.28"]
[WhiteClock "0:00:23"]
[BlackClock "0:00:08"]

1. e4 {[%clk 0:03:00]}  e5 {[%clk 0:03:00]} 2. Nc3 {[%clk 0:03:00]}  Bc5 {[%clk 0:03:00]} 3. Bc4 {[%clk 0:03:00]}  Nf6 {[%clk 0:02:59]} 4. d3 {[%clk 0:03:00]}  c6 {[%clk 0:02:52]} 5. f4 {[%clk 0:02:57]}  d5 {[%clk 0:02:41]} 6. exd5 {[%clk 0:02:48]}  O-O {[%clk 0:02:35]} 7. fxe5 {[%clk 0:02:33]}  Re8 {[%clk 0:02:35]} 8. d4 {[%clk 0:02:33]}  Bb6 {[%clk 0:02:15]} 9. Nf3 {[%clk 0:02:31]}  cxd5 {[%clk 0:02:11]} 10. Be2 {[%clk 0:02:27]}  Ne4 {[%clk 0:02:07]} 11. O-O {[%clk 0:02:25]}  Nc6 {[%clk 0:02:06]} 12. Kh1 {[%clk 0:02:11]}  Bg4 {[%clk 0:01:58]} 13. Be3 {[%clk 0:02:10]}  Qd7 {[%clk 0:01:35]} 14. Na4 {[%clk 0:01:54]}  Bc7 {[%clk 0:01:24]} 15. Nc3 {[%clk 0:01:49]}  h6 {[%clk 0:00:47]} 16. Nd2 {[%clk 0:01:39]}  Nxc3 {[%clk 0:00:43]} 17. bxc3 {[%clk 0:01:38]}  Bf5 {[%clk 0:00:38]} 18. Qe1 {[%clk 0:01:26]}  Bxc2 {[%clk 0:00:35]} 19. Qg3 {[%clk 0:01:26]}  Kh8 {[%clk 0:00:32]} 20. Nf3 {[%clk 0:01:21]}  Be4 {[%clk 0:00:30]} 21. Nh4 {[%clk 0:01:21]}  Bd8 {[%clk 0:00:22]} 22. Bg4 {[%clk 0:01:19]}  Bxh4 {[%clk 0:00:17]} 23. Qxh4 {[%clk 0:01:19]}  Qe7 {[%clk 0:00:17]} 24. Qh3 {[%clk 0:01:16]}  Kg8 {[%clk 0:00:13]} 25. Rf2 {[%clk 0:01:04]}  Nd8 {[%clk 0:00:13]} 26. Raf1 {[%clk 0:01:03]}  Ne6 {[%clk 0:00:12]} 27. Bxh6 {[%clk 0:00:35]}  gxh6 {[%clk 0:00:08]} 28. Rf6 {[%clk 0:00:35]}  Bg6 {[%clk 0:00:02]} 29. Bxe6 {[%clk 0:00:32]}  Qxe6 {[%clk 0:00:03]} 30. Rxe6 {[%clk 0:00:31]}  Rxe6 {[%clk 0:00:04]} 31. Qxh6 {[%clk 0:00:27]}  Bd3 {[%clk 0:00:04]} 32. Rf4 {[%clk 0:00:25]}  Rxh6 {[%clk 0:00:05]} 33. h3 {[%clk 0:00:21]}  Be4 {[%clk 0:00:05]} 34. Kh2 {[%clk 0:00:22]}  Rg6 {[%clk 0:00:05]} 35. g4 {[%clk 0:00:22]}  Re8 {[%clk 0:00:06]} 36. Kg3 {[%clk 0:00:23]}  Ree6 {[%clk 0:00:07]} 37. h4 {[%clk 0:00:22]}  Ra6 {[%clk 0:00:08]} 38. g5 {[%clk 0:00:22]}  Rxa2 {[%clk 0:00:07]} 39. Kg4 {[%clk 0:00:22]}  Rg2+ {[%clk 0:00:07]} 40. Kh5 {[%clk 0:00:23]}  Rg1 {[%clk 0:00:08]} 0-1


[Site "https://www.chess.com"]

[Event "Titled Tuesday Blitz June 28 Early 2022"]
[White "Samsonkin, Artiom"]
[Black "Bintang, Rasyid A. Hidayat"]
[WhiteFideId "13503111"]
[BlackFideId "7105355"]
[WhiteElo "2513"]
[BlackElo "2377"]
[Result "1-0"]
[Round "03"]
[TimeControl "180+1"]
[Date "2022.06.28"]
[WhiteClock "0:01:19"]
[BlackClock "0:01:55"]

1. d4 {[%clk 0:03:00]}  d5 {[%clk 0:02:58]} 2. Bf4 {[%clk 0:02:59]}  c5 {[%clk 0:02:58]} 3. e3 {[%clk 0:02:58]}  Nc6 {[%clk 0:02:58]} 4. c3 {[%clk 0:02:57]}  Nf6 {[%clk 0:02:56]} 5. Nf3 {[%clk 0:02:58]}  Qb6 {[%clk 0:02:55]} 6. Qc2 {[%clk 0:02:55]}  Bf5 {[%clk 0:02:54]} 7. dxc5 {[%clk 0:02:55]}  Bxc2 {[%clk 0:02:49]} 8. cxb6 {[%clk 0:02:55]}  axb6 {[%clk 0:02:47]} 9. Na3 {[%clk 0:02:55]}  e5 {[%clk 0:02:34]} 10. Nxc2 {[%clk 0:02:38]}  exf4 {[%clk 0:02:33]} 11. exf4 {[%clk 0:02:38]}  Bd6 {[%clk 0:02:31]} 12. g3 {[%clk 0:02:38]}  O-O {[%clk 0:02:32]} 13. Bd3 {[%clk 0:02:10]}  Rfe8+ {[%clk 0:02:28]} 14. Kf1 {[%clk 0:02:09]}  Ne4 {[%clk 0:02:22]} 15. Kg2 {[%clk 0:02:08]}  Bc5 {[%clk 0:02:21]} 16. Rhf1 {[%clk 0:02:04]}  f6 {[%clk 0:02:14]} 17. a3 {[%clk 0:02:02]}  Na5 {[%clk 0:02:12]} 18. b4 {[%clk 0:01:28]}  Nb3 {[%clk 0:02:12]} 19. Rab1 {[%clk 0:01:21]}  Nbd2 {[%clk 0:02:12]} 20. Bxe4 {[%clk 0:01:21]}  Nxb1 {[%clk 0:01:54]} 21. Bxd5+ {[%clk 0:01:19]}  Kh8 {[%clk 0:01:55]} 22. Rxb1 {[%clk 0:01:19]} 1-0


[Site "https://www.chess.com"]